bitfinex-derivatives/quotes_SOLF0:USTF0_20250523
["timestamp","ask_amount","ask_price","bid_price","bid_amount"]
[1747982344530,148.0696,180.87,180.81,0.03914057]
[1747982344733,142.5406,180.87,180.81,0.03914057]
[1747982345334,142.5406,180.87,180.84,5.5296]
[1747982345633,140.6017,180.87,180.84,5.5296]
[1747982345826,5.5282,180.9,180.82,5.5904789]
[1747982346032,5.5282,180.9,180.84,0.03564338]
[1747982346223,5.5282,180.9,180.86,5.5289]
[1747982346428,5.5282,180.9,180.84,0.03564338]
[1747982346734,5.5282,180.9,180.86,5.5289]
[1747982347134,5.5282,180.9,180.84,0.03564338]
[1747982347331,5.5282,180.9,180.87,5.5288]
[1747982347637,140.1688,180.91,180.84,0.03564338]
[1747982347838,140.1688,180.91,180.88,5.5284]
[1747982348023,140.1688,180.91,180.88,5.56473055]
[1747982348828,140.1688,180.91,180.89,5.528]
[1747982349339,1.9804,180.93,180.9,5.5279]
[1747982349631,1.9804,180.93,180.88,0.03633055]
[1747982350429,1.9804,180.93,180.92,5.5273]
[1747982350639,1.9804,180.93,180.88,0.03633055]
[1747982351535,138.16,180.95,180.88,0.03633055]
[1747982351742,138.16,180.95,180.88,5.62680945]
[1747982351944,3.9215,180.97,180.95,5.5262]
[1747982352636,3.9215,180.97,180.94,0.03528208]
[1747982353141,3.9215,180.97,180.94,5.56178208]
[1747982353340,3.9215,180.97,180.94,0.03528208]
[1747982353842,477.92,180.98,180.94,0.03528208]
[1747982354534,139.998,180.99,180.94,0.03528208]
[1747982356041,5.5257,180.98,180.94,5.56168208]
[1747982356842,5.526,180.97,180.94,5.56168208]
[1747982357442,5.5261,180.96,180.94,0.03528208]
[1747982358042,5.5258,180.97,180.94,5.56198208]
[1747982358245,5.5258,180.97,180.94,0.03528208]
[1747982358538,5.5258,180.97,180.94,5.56188208]
[1747982358742,139.998,180.99,180.94,0.03528208]
[1747982359241,5.5262,180.96,180.94,0.03528208]
[1747982359442,139.998,180.99,180.94,0.03528208]
[1747982360244,1.858,180.99,180.97,5.5256]
[1747982360842,7.3832,180.99,180.96,5.526]
[1747982361147,1.858,180.99,180.94,0.03528208]
[1747982361439,1.858,180.99,180.95,5.5262]
[1747982361643,1.858,180.99,180.94,0.03528208]
[1747982362239,1.858,180.99,180.98,5.5255]
[1747982364347,3.8546,181.02,180.95,5.5904789]
[1747982364641,138.1,181.03,180.95,5.5904789]
[1747982364846,138.1,181.03,181.02,5.5242]
[1747982365237,138.1,181.03,181.01,0.03503452]
[1747982365538,143.624,181.03,181.01,0.03503452]
[1747982365744,138.1,181.03,181.01,0.03503452]
[1747982365949,138.1,181.03,181.01,5.55933452]
[1747982366149,138.1,181.03,181.01,0.03503452]
[1747982366551,138.1,181.03,181.02,5.5242]
[1747982366749,138.1,181.03,181.01,0.03503452]
[1747982367150,143.6241,181.03,181.01,0.03503452]
[1747982367750,138.1,181.03,181.01,5.55953452]
[1747982368051,138.1,181.03,181.01,0.03503452]
[1747982368249,138.1,181.03,181.02,5.5242]
[1747982368943,3.8785,181.06,181.04,5.5236]
[1747982370045,1.9961,181.06,181.05,5.5233]
[1747982371453,137.56,181.08,181.07,5.5227]
[1747982371655,137.56,181.08,181.06,0.03785377]
[1747982372448,137.56,181.08,181.06,5.56055377]
[1747982373752,143.0824,181.08,181.06,5.56055377]
[1747982374052,143.0824,181.08,181.06,0.03785377]
[1747982374851,5.5227,181.07,181.06,0.03785377]
[1747982377555,137.56,181.08,181.06,0.03785377]
[1747982378354,137.56,181.08,181.06,5.56085377]
[1747982378655,137.56,181.08,181.06,0.03785377]
[1747982378955,137.56,181.08,181.07,5.5227]
[1747982380654,1.9847,181.1,181.08,5.5224]
[1747982381451,7.5066,181.1,181.07,5.5226]
[1747982381655,1.9847,181.1,181.06,0.03785377]
[1747982382156,5.5224,181.08,181.06,5.56065377]
[1747982382557,1.9847,181.1,181.06,5.56065377]
[1747982382760,1.9847,181.1,181.06,0.03785377]
[1747982383056,1.9847,181.1,180.96,248.0504789]
[1747982383254,1.9847,181.1,180.99,5.525]
[1747982383857,0.03625923,181.06,181.03,0.04164803]
[1747982384157,137.5,181.05,180.96,248.0504789]
[1747982384461,5.5239,181.04,180.96,242.46]
[1747982384960,0.04217686,181.02,180.98,0.03759586]
[1747982385157,0.04217686,181.02,181.01,5.5245]
[1747982397358,7.686e-05,181.02,181.01,5.5245]
[1747982400472,7.686e-05,181.02,180.98,0.03759586]
[1747982400872,7.686e-05,181.02,181.01,5.5246]
[1747982403571,7.686e-05,181.02,181.0,5.5248]
[1747982403876,7.686e-05,181.02,180.98,0.03759586]
[1747982404261,7.686e-05,181.02,181.0,5.5248]
[1747982404573,7.686e-05,181.02,180.98,0.03759586]
[1747982404783,5.52437686,181.02,180.99,5.525]
[1747982405076,5.52437686,181.02,180.98,0.03759586]
[1747982405273,5.52437686,181.02,180.99,5.5252]
[1747982405778,7.686e-05,181.02,180.98,0.03759586]
[1747982406372,7.686e-05,181.02,181.0,5.5247]
[1747982406569,7.686e-05,181.02,180.98,0.03759586]
[1747982408076,7.686e-05,181.02,181.01,5.5246]
[1747982411876,7.686e-05,181.02,180.98,0.03759586]
[1747982412270,7.686e-05,181.02,180.99,5.525]
[1747982412684,7.686e-05,181.02,180.98,0.03759586]
[1747982413081,7.686e-05,181.02,180.99,5.5252]
[1747982413282,7.686e-05,181.02,180.98,0.03759586]
[1747982413686,7.686e-05,181.02,181.01,5.5246]
[1747982414586,7.686e-05,181.02,180.98,0.03759586]
[1747982414779,136.88,181.01,180.98,0.03759586]
[1747982415184,5.5251,181.0,180.98,0.03759586]
[1747982415385,136.88,181.01,180.98,0.03759586]
[1747982415585,136.88,181.0,180.98,0.03759586]
[1747982415784,7.686e-05,181.02,180.98,0.03759586]
[1747982415986,136.88007686,181.02,180.98,0.03759586]
[1747982416286,5.5251,181.0,180.98,0.03759586]
[1747982416788,5.5247,181.01,180.98,5.56309586]
[1747982417088,136.88007686,181.02,180.98,0.03759586]
[1747982417386,5.5248,181.01,180.98,5.56299586]
[1747982417984,5.5248,181.01,180.98,0.03759586]
[1747982418286,5.525,181.0,180.98,0.03759586]
[1747982418488,136.88007686,181.02,180.98,5.56289586]
[1747982418694,136.88007686,181.02,180.98,0.03759586]
[1747982419286,136.88007686,181.02,181.01,5.5246]
[1747982419484,136.88007686,181.02,180.98,0.03759586]
[1747982419991,136.88007686,181.02,181.01,5.5246]
[1747982420692,7.686e-05,181.02,181.01,5.5246]
[1747982421392,7.686e-05,181.02,180.98,0.03759586]
[1747982421895,5.5247,181.01,180.98,5.56289586]
[1747982422194,5.5247,181.01,180.98,0.03759586]
[1747982422394,5.52437686,181.02,180.99,5.5252]
[1747982422590,7.686e-05,181.02,180.98,0.03759586]
[1747982422988,5.52437686,181.02,180.99,5.525]
[1747982423294,7.686e-05,181.02,180.98,0.03759586]
[1747982423694,136.88,181.01,180.98,0.03759586]
[1747982424193,142.4048,181.01,180.98,5.56289586]
[1747982424394,136.88,181.01,180.98,5.56289586]
[1747982424695,5.5251,181.0,180.98,0.03759586]
[1747982425092,136.88,181.01,180.98,0.03759586]
[1747982425293,5.5249,181.0,180.98,0.03759586]
[1747982426386,5.5249,181.0,180.98,5.56309586]
[1747982426789,5.5249,181.0,180.98,0.03759586]
[1747982427590,5.5252,180.99,180.98,0.03759586]
[1747982429700,5.5259,180.97,180.92,4.27336502]
[1747982430194,5.5256,180.98,180.92,4.27336502]
[1747982430500,136.88,181.01,180.95,5.5264]
[1747982430696,5.5255,180.99,180.96,0.04249048]
[1747982430994,5.5255,180.99,180.96,5.56859048]
[1747982431398,0.04145866,181.0,180.96,0.04249048]
[1747982431695,0.04145866,181.0,180.97,5.5258]
[1747982431899,0.04145866,181.0,180.96,0.04249048]
[1747982432198,0.04145866,181.0,180.96,5.56839048]
[1747982432388,5.56645866,181.0,180.96,0.04249048]
[1747982432695,5.56645866,181.0,180.97,5.5256]
[1747982432898,0.04145866,181.0,180.96,0.04249048]
[1747982433401,0.04145866,181.0,180.97,5.5256]
[1747982433698,5.56635866,181.0,180.97,5.5256]
[1747982435397,5.56635866,181.0,180.96,0.04249048]
[1747982435700,0.04145866,181.0,180.96,0.04249048]
[1747982435902,0.04145866,181.0,180.98,5.5252]
[1747982436504,5.56635866,181.0,180.98,5.5252]
[1747982437401,0.04145866,181.0,180.98,5.5252]
[1747982438102,0.04145866,181.0,180.99,5.5252]
[1747982441807,0.04145866,181.0,180.96,0.04249048]
[1747982442106,5.56665866,181.0,180.96,0.04249048]
[1747982442319,5.56665866,181.0,180.97,5.5256]
[1747982442818,5.5252,180.99,180.97,5.5256]
[1747982443018,0.04145866,181.0,180.98,5.5255]
[1747982443314,0.04145866,181.0,180.96,0.04249048]
[1747982443813,5.56645866,181.0,180.97,5.5257]
[1747982444413,5.5252,180.99,180.97,5.5257]
[1747982444718,5.5252,180.99,180.96,5.56849048]
[1747982444926,0.04145866,181.0,180.96,0.04249048]
[1747982445718,5.5258,180.97,180.96,0.04249048]
[1747982446719,5.5904789,180.98,180.9,4.27336502]
[1747982446923,5.5904789,180.95,180.9,1.21496502]
[1747982447218,5.5277,180.91,180.9,1.21496502]
[1747982447718,0.04007011,180.92,180.9,1.21496502]
[1747982448121,0.04007011,180.92,180.91,5.5277]
[1747982450024,0.04007011,180.92,180.9,5.5278]
[1747982451614,0.04007011,180.92,180.89,0.03735287]
[1747982452129,5.528,180.9,180.89,0.03735287]
[1747982452521,141.728,180.9,180.89,0.03735287]
[1747982453024,5.529,180.87,180.82,11.1909543]
[1747982453326,136.2,180.9,180.82,5.6607543]
[1747982453522,5.5904789,180.88,180.82,5.6607543]
[1747982454031,0.03512094,180.87,180.83,0.03986887]
[1747982455129,0.03512094,180.87,180.83,5.56996887]
[1747982455323,0.03512094,180.87,180.83,0.03986887]
[1747982455324,5.62559984,180.87,180.83,0.03986887]
[1747982456327,5.5298,180.84,180.83,0.03986887]
[1747982456517,141.7498,180.84,180.83,0.03986887]
[1747982458624,141.7498,180.84,180.73,7.4892]
[1747982458625,141.8104789,180.84,180.73,7.4892]
[1747982458832,141.8104789,180.84,180.7,105.06]
[1747982459122,5.532,180.77,180.7,105.06]
[1747982459323,135.48,180.78,180.68,5.8869]
[1747982459527,0.04087496,180.75,180.71,0.04180004]
[1747982460325,0.04087496,180.75,180.72,5.5334]
[1747982460931,0.04087496,180.75,180.71,0.04180004]
[1747982461130,613.18,180.83,180.71,5.63227894]
[1747982461329,613.18,180.83,180.74,5.5904789]
[1747982461534,613.18,180.83,180.75,1.9749]
[1747982461930,477.7,180.83,180.8,5.5309]
[1747982462229,477.73753883,180.83,180.8,0.04185289]
[1747982462535,5.5307,180.81,180.8,0.04185289]
[1747982462832,477.73753883,180.83,180.8,0.04185289]
[1747982463028,5.5307,180.81,180.8,0.04185289]
[1747982463332,477.73753883,180.83,180.71,105.08]
[1747982463531,477.7,180.83,180.71,105.08]
[1747982463726,5.532,180.77,180.73,5.5331]
[1747982464133,5.57330164,180.77,180.73,0.0408373]
[1747982464434,0.04130164,180.77,180.73,0.0408373]
[1747982465538,0.04130164,180.77,180.74,5.5326]
[1747982466134,0.04130164,180.77,180.75,5.5325]
[1747982466436,0.04130164,180.77,180.73,0.0408373]
[1747982466837,0.04130164,180.77,180.76,5.5322]
[1747982467736,0.04130164,180.77,180.73,0.0408373]
[1747982468237,135.58130164,180.77,180.73,0.0408373]
[1747982468431,135.58130164,180.77,180.74,5.5328]
[1747982468741,135.58130164,180.77,180.73,0.0408373]
[1747982470342,135.58130164,180.77,180.74,5.5326]
[1747982470538,0.04130164,180.77,180.73,0.0408373]
[1747982470739,0.04130164,180.77,180.73,5.6313162]
[1747982471239,0.04130164,180.77,180.76,5.5322]
[1747982473244,0.04130164,180.77,180.76,110.6322]
[1747982479447,135.54,180.85,180.81,5.5304]
[1747982479948,5.5299,180.84,180.81,5.5304]
[1747982480243,5.5299,180.84,180.82,5.5304]
[1747982480450,135.57706608,180.85,180.81,0.03757523]
[1747982480842,135.57706608,180.85,180.83,5.5299]
[1747982481348,135.57706608,180.85,180.84,5.5298]
[1747982481545,0.03706608,180.85,180.84,5.5298]
[1747982485249,0.03706608,180.85,180.83,105.1]
[1747982485455,5.56656608,180.85,180.83,105.1]
[1747982486053,0.03706608,180.85,180.83,105.1]
[1747982486357,135.53706608,180.85,180.81,0.03757523]
[1747982487260,5.5304,180.82,180.81,0.03757523]
[1747982490942,5.5302,180.83,180.81,0.03757523]
[1747982491254,0.03706608,180.85,180.81,0.03757523]
[1747982493456,0.03706608,180.85,180.82,5.5303]
[1747982493648,0.03706608,180.85,180.81,0.03757523]
[1747982494458,0.03706608,180.85,180.84,5.5298]
[1747982494859,0.03706608,180.85,180.81,0.03757523]
[1747982495063,5.53,180.84,180.81,0.03757523]
[1747982495457,0.03706608,180.85,180.81,0.03757523]
[1747982495661,0.03706608,180.85,180.81,5.56817523]
[1747982496157,0.03706608,180.85,180.81,0.03757523]
[1747982497263,5.53,180.84,180.81,5.56807523]
[1747982497563,0.03706608,180.85,180.81,0.03757523]
[1747982497961,0.03706608,180.85,180.83,5.53]
[1747982498865,5.56656608,180.85,180.82,5.5303]
[1747982499459,0.03706608,180.85,180.81,0.03757523]
[1747982500561,5.53,180.84,180.81,5.56817523]
[1747982501261,5.5301,180.83,180.81,0.03757523]
[1747982501864,5.5299,180.84,180.81,5.56827523]
[1747982502063,0.03706608,180.85,180.81,0.03757523]
[1747982503170,5.5303,180.83,180.81,0.03757523]
[1747982504768,5.5304,180.82,180.81,0.03757523]
[1747982504966,0.03706608,180.85,180.81,0.03757523]
[1747982505169,5.5299,180.84,180.81,5.56827523]
[1747982505470,0.03706608,180.85,180.81,0.03757523]
[1747982506986,0.03706608,180.85,180.83,5.5299]
[1747982507183,0.03706608,180.85,180.81,0.03757523]
[1747982507684,0.03706608,180.85,180.82,5.5301]
[1747982507985,0.03706608,180.85,180.81,0.03757523]
[1747982508988,0.03706608,180.85,180.84,5.5298]
[1747982512283,0.03706608,180.85,180.84,110.6098]
[1747982516793,0.03706608,180.85,180.81,0.03757523]
[1747982517791,0.03706608,180.85,180.82,5.5303]
[1747982517991,0.03706608,180.85,180.81,0.03757523]
[1747982519093,5.5301,180.83,180.81,0.03757523]
[1747982520495,5.5304,180.82,180.81,0.03757523]
[1747982520795,0.03706608,180.85,180.81,0.03757523]
[1747982520995,5.53,180.84,180.81,5.56827523]
[1747982521590,0.03706608,180.85,180.81,0.03757523]
[1747982522195,5.56666608,180.85,180.82,5.5302]
[1747982522697,5.5298,180.84,180.81,0.03757523]
[1747982522995,0.03706608,180.85,180.81,0.03757523]
[1747982523295,5.56666608,180.85,180.83,5.5301]
[1747982523496,0.03706608,180.85,180.83,5.5301]
[1747982523688,0.03706608,180.85,180.81,0.03757523]
[1747982524805,0.03706608,180.85,180.84,5.5298]
[1747982525003,6.608e-05,180.85,180.84,110.6098]
[1747982528396,5.071922,180.91,180.84,105.08]
[1747982528700,140.48434926,180.94,180.84,105.08]
[1747982528701,139.287,180.94,180.84,105.08]
[1747982528999,133.76,180.94,180.84,105.08]
[1747982529501,5.56388693,180.91,180.87,0.0400891]
[1747982529798,0.03598693,180.91,180.87,0.0400891]
[1747982530800,5.56368693,180.91,180.88,5.5284]
[1747982531098,0.03598693,180.91,180.87,0.0400891]
[1747982531400,5.5282,180.9,180.87,5.5687891]
[1747982531706,0.03598693,180.91,180.87,5.5687891]
[1747982532203,5.5283,180.89,180.87,0.0400891]
[1747982532495,0.03598693,180.91,180.87,0.0400891]
[1747982533605,5.528,180.9,180.87,5.5686891]
[1747982533899,0.03598693,180.91,180.87,0.0400891]
[1747982535307,5.5285,180.89,180.87,0.0400891]
[1747982536201,5.5281,180.9,180.87,5.5689891]
[1747982536404,5.5281,180.9,180.87,0.0400891]
[1747982536708,5.5283,180.89,180.87,0.0400891]
[1747982537306,5.5286,180.88,180.87,0.0400891]
[1747982539207,139.2684,180.89,180.87,0.0400891]
[1747982539509,133.74,180.89,180.87,0.0400891]
[1747982540611,5.5286,180.88,180.87,0.0400891]
[1747982540911,133.74,180.89,180.87,0.0400891]
[1747982542511,133.74,180.89,180.81,4.2746868]
[1747982542712,5.5904789,180.87,180.81,4.2746868]
[1747982542910,5.5904789,180.84,180.76,8.4888973]
[1747982543110,135.7551,180.83,180.76,8.4888973]
[1747982543316,5.5313,180.79,180.76,8.4888973]
[1747982543611,5.5904789,180.79,180.76,2.41066282]
[1747982543811,133.74,180.78,180.71,11.31921161]
[1747982544312,5.5335,180.72,180.71,11.31921161]
[1747982545312,5.5338,180.71,180.7,0.04057574]
[1747982545703,139.36774798,180.73,180.66,14.14986687]
[1747982545903,5.535,180.67,180.66,14.14986687]
[1747982546712,5.535,180.67,180.66,5.68686687]
[1747982550917,5.5353,180.66,180.65,0.03686103]
[1747982551408,139.40695739,180.68,180.59,3.2496234]
[1747982551617,5.5371,180.6,180.59,3.2496234]
[1747982551916,138.5971,180.6,180.59,3.2496234]
[1747982552607,133.06,180.6,180.59,3.2496234]
[1747982553814,133.06,180.6,180.59,8.7870234]
[1747982554215,133.06,180.6,180.59,3.2496234]
[1747982554611,133.06,180.6,180.59,8.7870234]
[1747982554816,133.06,180.6,180.59,3.2496234]
[1747982555009,133.06,180.6,180.59,8.7870234]
[1747982555210,133.06,180.6,180.59,3.2496234]
[1747982556818,133.06,180.6,180.59,8.7870234]
[1747982557117,0.03763707,180.61,180.59,3.2496234]
[1747982557318,0.03763707,180.61,180.6,5.5371]
[1747982557520,0.03763707,180.61,180.58,0.03532334]
[1747982558321,0.03763707,180.61,180.59,5.5372]
[1747982558521,0.03763707,180.61,180.58,0.03532334]
[1747982559020,0.03763707,180.61,180.59,5.5374]
[1747982559220,0.03763707,180.61,180.58,0.03532334]
[1747982559625,0.03763707,180.61,180.58,5.57282334]
[1747982559810,0.03763707,180.61,180.58,0.03532334]
[1747982560427,0.03763707,180.61,180.59,5.5372]
[1747982560919,0.03763707,180.61,180.58,0.03532334]
[1747982561622,0.03763707,180.61,180.6,5.5371]
[1747982565927,133.1,180.64,180.63,5.5362]
[1747982566430,133.1,180.64,180.62,5.5364]
[1747982566626,133.1,180.64,180.56,5.5904789]
[1747982566827,0.03487118,180.62,180.58,0.03750353]
[1747982567828,0.03487118,180.62,180.61,5.5368]
[1747982568922,0.03487118,180.62,180.58,0.03750353]
[1747982569123,5.5371,180.61,180.58,0.03750353]
[1747982569324,0.03487118,180.62,180.58,0.03750353]
[1747982569524,0.03487118,180.62,180.59,5.5372]
[1747982570744,0.03487118,180.62,180.6,5.5371]
[1747982571239,0.03487118,180.62,180.61,5.5368]
[1747982573237,133.1,180.64,180.63,5.5362]
[1747982573631,478.14,180.67,180.6,105.22]
[1747982574239,0.0354761,180.65,180.62,0.03876454]
[1747982574436,133.14,180.68,180.62,0.03876454]
[1747982574836,133.14,180.72,180.64,5.5904789]
[1747982575437,133.14,180.72,180.69,5.5344]
[1747982575626,0.03734558,180.71,180.69,5.5344]
[1747982576028,0.03734558,180.71,180.68,5.57078511]
[1747982576538,5.57124558,180.71,180.68,5.57078511]
[1747982577238,0.03734558,180.71,180.68,5.57078511]
[1747982577640,0.03734558,180.71,180.68,0.03618511]
[1747982578242,5.5344,180.69,180.68,0.03618511]
[1747982578441,0.03734558,180.71,180.68,0.03618511]
[1747982579340,11.17926,180.7,180.68,0.03618511]
[1747982579541,5.64496,180.7,180.68,0.03618511]
[1747982580242,5.5344,180.69,180.68,0.03618511]
[1747982580543,5.64496,180.7,180.68,0.03618511]
[1747982580735,5.64496,180.7,180.69,5.5344]
[1747982581338,0.03734558,180.71,180.68,0.03618511]
[1747982581535,132.44,180.76,180.69,5.5904789]
[1747982581734,132.44,180.76,180.7,105.18]
[1747982582445,0.04067463,180.75,180.7,105.18]
[1747982582943,4.63885709,180.75,180.7,105.18]
[1747982583844,4.63885709,180.75,180.74,5.5328]
[1747982586245,4.63885709,180.75,180.73,0.03820558]
[1747982586642,10.17155709,180.75,180.73,0.03820558]
[1747982586848,4.63885709,180.75,180.73,0.03820558]
[1747982587043,4.59818246,180.74,180.73,0.03820558]
[1747982587239,4.59818246,180.74,180.73,5.57130558]
[1747982588345,137.43211681,180.8,180.79,5.5313]
[1747982588543,5.01211681,180.8,180.79,5.5313]
[1747982588743,5.01211681,180.81,180.76,5.5904789]
[1747982588943,5.01211681,180.81,180.8,5.531]
[1747982589337,5.01211681,180.81,180.77,1.8532]
[1747982589640,5.01211681,180.81,180.79,5.56941217]
[1747982589840,5.01211681,180.81,180.79,0.03811217]
[1747982590251,5.01211681,180.81,180.8,5.531]
[1747982590946,5.01211681,180.81,180.79,5.56931217]
[1747982591147,5.01211681,180.81,180.79,0.03811217]
[1747982591852,5.01211681,180.81,180.8,5.531]
[1747982592051,0.03680493,180.82,180.79,0.03811217]
[1747982594552,0.03680493,180.82,180.8,5.531]
[1747982595554,0.03680493,180.82,180.81,5.5307]
[1747982596853,5.56720493,180.82,180.79,5.56931217]
[1747982597355,0.03680493,180.82,180.79,5.56931217]
[1747982597554,0.03680493,180.82,180.8,5.531]
[1747982598257,0.03680493,180.82,180.79,5.56931217]
[1747982598451,0.03680493,180.82,180.79,0.03811217]
[1747982599161,0.03680493,180.82,180.81,5.5307]
[1747982599758,5.56730493,180.82,180.79,5.56921217]
[1747982600656,0.03680493,180.82,180.8,5.5309]
[1747982600857,0.03680493,180.82,180.79,0.03811217]
[1747982601160,0.03680493,180.82,180.81,5.5307]
[1747982603163,0.03680493,180.82,180.8,5.5309]
[1747982603966,0.03680493,180.82,180.81,5.5307]
[1747982604165,0.03680493,180.82,180.79,0.03811217]
[1747982606567,0.03680493,180.82,180.81,5.5307]
[1747982608963,132.3,180.89,180.87,5.5287]
[1747982609161,137.8284,180.89,180.84,105.1]
[1747982609465,137.8284,180.89,180.86,5.529]
[1747982609664,5.5286,180.88,180.86,5.529]
[1747982609868,132.33890039,180.89,180.86,5.529]
[1747982610062,137.86730039,180.89,180.86,5.529]
[1747982610562,132.33890039,180.89,180.88,5.5286]
[1747982610871,132.33890039,180.89,180.85,0.0354162]
[1747982611079,132.33890039,180.89,180.85,5.5649162]
[1747982611371,137.86730039,180.89,180.85,5.5649162]
[1747982611570,132.33890039,180.89,180.85,0.0354162]
[1747982611966,5.5291,180.87,180.85,0.0354162]
[1747982612565,5.5286,180.88,180.85,0.0354162]
[1747982612869,132.33890039,180.89,180.85,0.0354162]
[1747982613370,137.86730039,180.89,180.85,5.5646162]
[1747982613570,137.86730039,180.89,180.85,0.0354162]
[1747982613967,132.33890039,180.89,180.87,5.5288]
[1747982614273,132.33890039,180.89,180.85,0.0354162]
[1747982614771,132.33890039,180.89,180.87,5.5288]
[1747982616774,137.86720039,180.89,180.86,5.5291]
[1747982617174,137.86720039,180.89,180.85,0.0354162]
[1747982617369,5.5286,180.88,180.85,0.0354162]
[1747982617775,132.33890039,180.89,180.85,0.0354162]
[1747982619578,137.86730039,180.89,180.86,5.5289]
[1747982620277,137.86730039,180.89,180.87,5.5288]
[1747982620477,132.33890039,180.89,180.85,0.0354162]
[1747982621080,132.33890039,180.89,180.88,5.5286]
[1747982621283,0.03890039,180.89,180.88,5.5286]
[1747982630878,0.03890039,180.89,180.87,5.5904789]
[1747982630879,136.57211681,180.97,180.87,5.5904789]
[1747982631182,136.57211681,180.97,180.9,5.5904789]
[1747982631381,136.57211681,180.97,180.95,5.5262]
[1747982631581,4.5413643,180.96,180.95,5.5262]
[1747982631881,4.5413643,180.96,180.94,0.04177783]
[1747982632486,10.0674643,180.96,180.94,0.04177783]
[1747982632784,4.5413643,180.96,180.94,0.04177783]
[1747982632983,5.5264,180.95,180.94,0.04177783]
[1747982634383,10.0677643,180.95,180.94,0.04177783]
[1747982635585,5.5264,180.95,180.94,0.04177783]
[1747982642188,5.5262,180.96,180.94,0.04177783]
[1747982642390,5.5262,180.96,180.94,5.56847783]
[1747982642585,131.56,180.97,180.94,0.04177783]
[1747982642786,137.79991681,181.01,180.94,0.04177783]
[1747982642992,135.79211681,181.01,180.94,0.04177783]
[1747982643490,135.79211681,181.01,181.0,5.5249]
[1747982643897,130.78,181.01,181.0,5.5249]
[1747982645294,135.31242184,181.01,181.0,5.5249]
[1747982646093,135.31242184,181.01,180.99,5.5613035]
[1747982646592,135.31242184,181.01,180.99,0.0362035]
[1747982646892,130.78,181.01,180.99,0.0362035]
[1747982649592,5.5249,181.0,180.99,0.0362035]
[1747982651887,10.05759476,181.0,180.99,0.0362035]
[1747982652592,4.53269476,181.0,180.99,5.5614035]
[1747982655089,5.01211681,181.04,181.01,5.5246]
[1747982655699,5.5242,181.03,181.0,5.5248]
[1747982656104,5.5242,181.03,180.99,0.0362035]
[1747982656394,5.5242,181.03,181.0,5.5247]
[1747982657196,4.53315727,181.02,181.0,5.5247]
[1747982658188,132.6143,181.05,180.99,5.5613035]
[1747982658598,5.5242,181.03,180.99,5.5613035]
[1747982658894,5.5242,181.03,180.99,0.0362035]
[1747982659294,5.5242,181.03,181.0,5.5247]
[1747982659590,132.6143,181.05,180.99,0.0362035]
[1747982659980,132.6143,181.05,181.01,5.5244]
[1747982660192,5.5239,181.04,181.01,5.5244]
[1747982660793,5.524,181.03,181.0,5.5248]
[1747982661292,4.53452798,181.04,180.99,0.0362035]
[1747982661494,10.05832798,181.04,181.01,5.5244]
[1747982661684,4.53452798,181.03,180.99,0.0362035]
[1747982662194,4.53452798,181.03,181.01,5.5244]
[1747982662492,4.53452798,181.03,180.99,0.0362035]
[1747982663395,4.53452798,181.03,181.0,5.5247]
[1747982663898,10.05862798,181.03,181.0,5.5247]
[1747982664197,10.05862798,181.03,181.01,5.5245]
[1747982664395,10.05832798,181.04,181.01,5.5245]
[1747982664593,4.53452798,181.04,180.99,0.0362035]
[1747982664896,10.05842798,181.04,180.99,0.0362035]
[1747982665297,10.05842798,181.04,181.01,5.5244]
[1747982665500,10.05842798,181.04,180.99,0.0362035]
[1747982665702,4.53452798,181.03,181.01,5.5244]
[1747982665999,4.53452798,181.03,180.99,0.0362035]
[1747982666296,4.53452798,181.03,181.02,5.5243]
[1747982668305,4.53452798,181.04,181.03,5.524]
[1747982669005,4.53452798,181.04,180.99,0.0362035]
[1747982669704,4.53452798,181.04,181.03,5.524]
[1747982670105,4.53452798,181.04,180.99,0.0362035]
[1747982671507,4.53452798,181.04,181.03,5.524]
[1747982674019,135.4823,181.09,181.06,5.5228]
[1747982674212,135.4823,181.09,181.06,0.04049706]
[1747982674611,135.4823,181.09,181.06,5.56339706]
[1747982674913,135.4823,181.09,181.06,0.04049706]
[1747982675100,135.4823,181.09,181.07,5.5227]
[1747982675307,4.54498628,181.08,181.06,0.04049706]
[1747982675514,10.06748628,181.08,181.06,0.04049706]
[1747982676613,5.5227,181.07,181.06,0.04049706]
[1747982677211,10.06768628,181.07,181.06,0.04049706]